[Event "I Liga Centralne Srbije"]
[Site "Bajina Bašta, Serbia"]
[Date "2020.10.11"]
[Round "2.2"]
[White "Celik, Hasan Huseyin"]
[Black "Brenjo, Slavisa"]
[Result "1/2-1/2"]
[ECO "D32"]
[WhiteElo "1970"]
[BlackElo "2412"]
[Annotator "Knez"]
[PlyCount "96"]
[EventDate "2020.??.??"]
[TimeControl "90"]
[WhiteClock "0:01:18"]
[BlackClock "0:15:24"]

1. d4 {[%emt 0:00:00]} d5 {[%emt 0:00:00]} 2. c4 {[%emt 0:00:00]} e6 {[%emt 0:
00:00]} 3. cxd5 {[%emt 0:00:00]} exd5 {[%emt 0:00:00]} 4. Nc3 {[%emt 0:00:00]}
c5 {[%emt 0:00:00]} 5. Nf3 {[%emt 0:00:00]} Nc6 {[%emt 0:00:00]} 6. dxc5 {
[%emt 0:00:00]} d4 {[%emt 0:00:00]} 7. Na4 {[%emt 0:00:00]} Bxc5 {[%emt 0:00:
00]} 8. Nxc5 {[%emt 0:00:00]} Qa5+ {[%emt 0:00:00]} 9. Bd2 {[%emt 0:00:00]}
Qxc5 {[%emt 0:00:00]} 10. Rc1 {[%emt 0:00:00]} Qb6 {[%emt 0:00:00]} 11. e3 {
[%emt 0:00:00]} Nf6 {[%emt 0:00:00]} 12. Bc4 {[%emt 0:00:00]} dxe3 {[%emt 0:00:
00]} 13. Bxe3 {[%emt 0:00:00]} Qb4+ {[%emt 0:00:00]} 14. Qd2 {[%emt 0:00:00]}
Qxd2+ {[%emt 0:00:00]} 15. Bxd2 {[%emt 0:00:00]} O-O {[%emt 0:00:00]} 16. O-O {
[%emt 0:00:00]} Bg4 {[%emt 0:00:00]} 17. Rfe1 {[%emt 0:00:00]} Bxf3 {[%emt 0:
00:00]} 18. gxf3 {[%emt 0:00:00]} Rfd8 {[%emt 0:00:00]} 19. Bg5 {[%emt 0:00:00]
} h6 {[%emt 0:00:00]} 20. Be3 {[%emt 0:00:00]} Ne5 {[%emt 0:00:00]} 21. Be2 {
[%emt 0:00:00]} Nd3 {[%emt 0:00:00]} 22. Bxd3 {[%emt 0:00:00]} Rxd3 {[%emt 0:
00:00]} 23. Rc7 {[%emt 0:00:00]} b6 {[%emt 0:00:00]} 24. Rec1 {[%emt 0:00:00]}
Nd5 {[%emt 0:00:00]} 25. Rd7 {[%emt 0:00:00]} Re8 {[%emt 0:00:00]} 26. h4 {
[%emt 0:00:00]} f5 {[%emt 0:00:00]} 27. Rcc7 {[%emt 0:00:00]} Nxc7 {[%emt 0:00:
00]} 28. Rxd3 {[%emt 0:00:00]} Re7 {[%emt 0:00:00]} 29. Kg2 {[%emt 0:00:00]}
Kf7 {[%emt 0:00:00]} 30. Kg3 {[%emt 0:00:00]} Ke6 {[%emt 0:00:00]} 31. Rc3 {
[%emt 0:00:00]} Nd5 {[%emt 0:00:00]} 32. Rc6+ {[%emt 0:00:00]} Kf7 {[%emt 0:00:
00]} 33. Bd4 {[%emt 0:00:00]} Re6 {[%emt 0:00:00]} 34. Rxe6 {[%emt 0:00:00]}
Kxe6 {[%emt 0:00:00]} 35. Bxg7 {[%emt 0:00:00]} h5 {[%emt 0:00:00]} 36. f4 {
[%emt 0:00:00]} Kd6 {[%emt 0:00:00]} 37. Kf3 {[%emt 0:00:00]} Kc5 {[%emt 0:00:
00]} 38. Be5 {[%emt 0:00:00]} a5 {[%emt 0:00:00]} 39. Ke2 {[%emt 0:00:00]} a4 {
[%emt 0:00:00]} 40. Kd2 {[%emt 0:00:00]} b5 {[%emt 0:00:00]} 41. f3 {[%emt 0:
00:00]} Kc4 {[%emt 0:00:24]} 42. b3+ {[%emt 0:00:00]} axb3 {[%emt 0:00:00]} 43.
axb3+ {[%emt 0:00:00]} Kc5 {[%emt 0:00:03]} 44. Kd3 {[%emt 0:00:00]} Nb4+ {
[%emt 0:00:00]} 45. Kc3 {[%emt 0:00:00]} Nc6 {[%emt 0:00:00]} 46. Bf6 {[%emt 0:
00:00]} Kd5 {[%emt 0:00:00]} 47. b4 {[%emt 0:00:00]} Nb8 {[%emt 0:00:00]} 48.
Kd3 {[%emt 0:00:00]} Nc6 {[%emt 0:00:00]} 1/2-1/2

[Event "I Liga Centralne Srbije"]
[Site "Bajina Bašta, Serbia"]
[Date "2020.10.11"]
[Round "2.2"]
[White "Dizdarevic, Emir"]
[Black "Irizanin, Radoje"]
[Result "1-0"]
[ECO "A04"]
[WhiteElo "2444"]
[BlackElo "2331"]
[Annotator "Knez"]
[PlyCount "49"]
[EventDate "2020.??.??"]
[TimeControl "90"]
[WhiteClock "0:00:33"]
[BlackClock "0:28:00"]

1. Nf3 {[%emt 0:00:00]} b6 {[%emt 0:00:00]} 2. g3 {[%emt 0:00:00]} Bb7 {
[%emt 0:00:00]} 3. Bg2 {[%emt 0:00:00]} e5 {[%emt 0:00:00]} 4. c4 {[%emt 0:00:
00]} e4 {[%emt 0:00:00]} 5. Nh4 {[%emt 0:00:00]} g5 {[%emt 0:00:00]} 6. Nf5 {
[%emt 0:00:00]} Ne7 {[%emt 0:00:00]} 7. Ne3 {[%emt 0:00:00]} Bg7 {[%emt 0:00:
00]} 8. d3 {[%emt 0:00:00]} f5 {[%emt 0:00:00]} 9. dxe4 {[%emt 0:00:00]} fxe4 {
[%emt 0:00:00]} 10. Nd2 {[%emt 0:00:00]} O-O {[%emt 0:00:00]} 11. Nxe4 {
[%emt 0:00:00]} Bxe4 {[%emt 0:00:00]} 12. Bxe4 {[%emt 0:00:00]} Nbc6 {[%emt 0:
00:00]} 13. h4 {[%emt 0:00:00]} g4 {[%emt 0:00:00]} 14. Nxg4 {[%emt 0:00:00]}
Kh8 {[%emt 0:00:00]} 15. h5 {[%emt 0:00:00]} Nf5 {[%emt 0:00:00]} 16. h6 {
[%emt 0:00:00]} Bd4 {[%emt 0:00:00]} 17. e3 {[%emt 0:00:00]} Qe7 {[%emt 0:00:
00]} 18. Bd5 {[%emt 0:00:00]} Ne5 {[%emt 0:00:35]} 19. Bxa8 {[%emt 0:00:00]} c6
{[%emt 0:00:00]} 20. Nxe5 {[%emt 0:00:00]} Bxe5 {[%emt 0:00:00]} 21. Qd3 {
[%emt 0:00:00]} Nxg3 {[%emt 0:00:18]} 22. fxg3 {[%emt 0:00:00]} Bxg3+ {[%emt 0:
00:00]} 23. Kd1 {[%emt 0:00:00]} Rf2 {[%emt 0:00:00]} 24. Bd2 {[%emt 0:00:00]}
Qe6 {[%emt 0:00:04]} 25. Qd4+ {[%emt 0:00:00]} 1-0

[Event "I Liga Centralne Srbije"]
[Site "Bajina Bašta, Serbia"]
[Date "2020.10.11"]
[Round "2.2"]
[White "Djakovac, Enes"]
[Black "Roljevic, Djordje"]
[Result "1/2-1/2"]
[ECO "C54"]
[WhiteElo "2165"]
[BlackElo "2177"]
[Annotator "Knez"]
[PlyCount "100"]
[EventDate "2020.??.??"]
[TimeControl "90"]

1. e4 {[%emt 0:10:00]} e5 {[%emt 0:00:08]} 2. Nf3 {[%emt 0:00:19]} Nc6 {
[%emt 0:00:08]} 3. Bc4 {[%emt 0:00:17]} Bc5 {[%emt 0:00:10]} 4. O-O {[%emt 0:
00:18]} d6 {[%emt 0:00:13]} 5. c3 {[%emt 0:03:22]} Nf6 {[%emt 0:00:27]} 6. d3 {
[%emt 0:11:05]} a6 {[%emt 0:00:25]} 7. Bg5 {[%emt 0:02:35]} h6 {[%emt 0:00:40]}
8. Bh4 {[%emt 0:01:31]} Ba7 {[%emt 0:05:24]} 9. a4 {[%emt 0:07:01]} g5 {
[%emt 0:02:46]} 10. Bg3 {[%emt 0:13:22]} Bg4 {[%emt 0:06:50]} 11. Nbd2 {
[%emt 0:04:27]} O-O {[%emt 0:11:26]} 12. Qc2 {[%emt 0:03:57]} Nh5 {[%emt 0:01:
01]} 13. Kh1 {[%emt 0:09:53]} Qf6 {[%emt 0:03:03]} 14. h3 {[%emt 0:04:29]} Bd7
{[%emt 0:00:38]} 15. Rae1 {[%emt 0:05:53]} Rae8 {[%emt 0:03:59]} 16. Nh2 {
[%emt 0:08:27]} Nf4 {[%emt 0:00:24]} 17. f3 {[%emt 0:03:33]} Qg6 {[%emt 0:08:
00]} 18. Ba2 {[%emt 0:08:21]} h5 {[%emt 0:04:45]} 19. b4 {[%emt 0:04:14]} Kg7 {
[%emt 0:01:04]} 20. Nc4 {[%emt 0:00:54]} Be6 {[%emt 0:05:15]} 21. Ne3 {[%emt 0:
00:16]} Nxd3 {[%emt 0:06:18]} 22. Qxd3 {[%emt 0:00:49]} Bxa2 {[%emt 0:00:06]}
23. b5 {[%emt 0:00:27]} Na5 {[%emt 0:11:14]} 24. Re2 {[%emt 0:02:31]} Bxe3 {
[%emt 0:02:55]} 25. Rxa2 {[%emt 0:00:02]} Bb6 {[%emt 0:03:36]} 26. bxa6 {
[%emt 0:00:30]} bxa6 {[%emt 0:00:40]} 27. Qxa6 {[%emt 0:00:14]} Qe6 {[%emt 0:
01:10]} 28. Raa1 {[%emt 0:00:16]} Nc4 {[%emt 0:05:53]} 29. Bf2 {[%emt 0:00:27]}
Ra8 {[%emt 0:05:34]} 30. Qb5 {[%emt 0:00:22]} Ra5 {[%emt 0:01:19]} 31. Qb3 {
[%emt 0:03:09]} Rfa8 {[%emt 0:01:57]} 32. Qd1 {[%emt 0:01:13]} Qd7 {[%emt 0:04:
46]} 33. f4 {[%emt 0:00:31]} exf4 {[%emt 0:01:07]} 34. Qxh5 Nd2 {[%emt 0:01:05]
} 35. Bxb6 {[%emt 0:00:23]} cxb6 {[%emt 0:01:06]} 36. Rfe1 {[%emt 0:00:15]} f6
{[%emt 0:00:44]} 37. Ng4 {[%emt 0:00:47]} Rh8 {[%emt 0:00:22]} 38. Nxf6 {
[%emt 0:00:02]} Rxh5 {[%emt 0:01:23]} 39. Nxd7 {[%emt 0:00:02]} g4 {[%emt 0:00:
43]} 40. Ra2 {[%emt 0:00:30]} Nc4 {[%emt 0:00:53]} 41. Kh2 {[%emt 0:00:19]} f3
{[%emt 0:00:16]} 42. Kg3 {[%emt 0:00:10]} fxg2 {[%emt 0:00:26]} 43. hxg4 {
[%emt 0:00:05]} Rh1 {[%emt 0:00:24]} 44. Raa1 {[%emt 0:00:13]} Rxe1 {[%emt 0:
01:10]} 45. Rxe1 {[%emt 0:00:01]} Rxa4 {[%emt 0:00:16]} 46. Kxg2 {[%emt 0:00:
02]} b5 {[%emt 0:00:32]} 47. e5 {[%emt 0:01:33]} dxe5 {[%emt 0:00:16]} 48. Nxe5
{[%emt 0:00:10]} Nxe5 {[%emt 0:00:09]} 49. Rxe5 {[%emt 0:00:33]} Rxg4+ {
[%emt 0:00:26]} 50. Kf2 {[%emt 0:00:15]} Rc4 {[%emt 0:00:07]} 1/2-1/2

[Event "I Liga Centralne Srbije"]
[Site "Bajina Bašta, Serbia"]
[Date "2020.10.11"]
[Round "2.4"]
[White "Delchev, Aleksander"]
[Black "Budisavljevic, Luka"]
[Result "0-1"]
[ECO "B40"]
[WhiteElo "2548"]
[BlackElo "2454"]
[Annotator "Knez"]
[PlyCount "70"]
[EventDate "2020.??.??"]
[TimeControl "90"]
[WhiteClock "0:02:39"]
[BlackClock "0:08:25"]

1. e4 {[%emt 0:00:00]} c5 {[%emt 0:00:00]} 2. Nf3 {[%emt 0:00:00]} e6 {[%emt 0:
00:00]} 3. g3 {[%emt 0:00:00]} d5 {[%emt 0:00:00]} 4. exd5 {[%emt 0:00:00]}
exd5 {[%emt 0:00:00]} 5. d4 {[%emt 0:00:00]} Nf6 {[%emt 0:00:00]} 6. Bg2 {
[%emt 0:00:00]} Be7 {[%emt 0:00:00]} 7. O-O {[%emt 0:00:00]} O-O {[%emt 0:00:
00]} 8. dxc5 {[%emt 0:00:00]} Bxc5 {[%emt 0:00:00]} 9. Nc3 {[%emt 0:00:00]} Nc6
{[%emt 0:00:00]} 10. a3 {[%emt 0:00:00]} Bg4 {[%emt 0:00:00]} 11. h3 {[%emt 0:
00:00]} Be6 {[%emt 0:00:00]} 12. b4 {[%emt 0:00:00]} Be7 {[%emt 0:00:00]} 13.
Bb2 {[%emt 0:00:00]} Qd7 {[%emt 0:00:00]} 14. Kh2 {[%emt 0:00:00]} Rad8 {
[%emt 0:00:00]} 15. Re1 {[%emt 0:00:00]} Rfe8 {[%emt 0:00:00]} 16. Nd4 {
[%emt 0:00:00]} h5 {[%emt 0:00:00]} 17. Nxe6 {[%emt 0:00:00]} fxe6 {[%emt 0:00:
00]} 18. Na4 {[%emt 0:00:00]} h4 {[%emt 0:00:00]} 19. c4 {[%emt 0:00:00]} hxg3+
{[%emt 0:00:00]} 20. fxg3 {[%emt 0:00:00]} d4 {[%emt 0:00:00]} 21. c5 {[%emt 0:
00:00]} Bf8 {[%emt 0:00:00]} 22. Rc1 {[%emt 0:00:00]} Ne7 {[%emt 0:00:00]} 23.
Qb3 {[%emt 0:00:00]} Nf5 {[%emt 0:00:00]} 24. c6 {[%emt 0:00:00]} Qf7 {[%emt 0:
00:00]} 25. c7 {[%emt 0:00:00]} Rc8 {[%emt 0:00:00]} 26. Bxb7 {[%emt 0:00:00]}
Rxc7 {[%emt 0:00:00]} 27. Bc6 {[%emt 0:00:00]} Rec8 {[%emt 0:00:00]} 28. b5 {
[%emt 0:00:00]} Bd6 {[%emt 0:00:00]} 29. Qxe6 {[%emt 0:00:00]} Bxg3+ {[%emt 0:
00:00]} 30. Kh1 {[%emt 0:00:00]} Bxe1 {[%emt 0:00:00]} 31. Qxf5 {[%emt 0:00:00]
} Bd2 {[%emt 0:00:00]} 32. Rd1 {[%emt 0:00:00]} Be3 {[%emt 0:00:00]} 33. Nc5 {
[%emt 0:00:00]} Rxc6 {[%emt 0:00:00]} 34. bxc6 {[%emt 0:00:00]} Rxc6 {[%emt 0:
00:00]} 35. Nd3 {[%emt 0:07:21]} Rc2 {[%emt 0:00:00]} 0-1

[Event "I Liga Centralne Srbije"]
[Site "Bajina Bašta, Serbia"]
[Date "2020.10.11"]
[Round "2.4"]
[White "Maksimovic, Bojan"]
[Black "Radovanovic, Mihajlo"]
[Result "1/2-1/2"]
[ECO "B94"]
[WhiteElo "2398"]
[BlackElo "2457"]
[Annotator "Knez"]
[PlyCount "120"]
[EventDate "2020.??.??"]
[TimeControl "90"]
[WhiteClock "0:02:31"]
[BlackClock "0:01:54"]

1. e4 {[%emt 0:00:00]} c5 {[%emt 0:00:00]} 2. Nf3 {[%emt 0:00:00]} d6 {[%emt 0:
00:00]} 3. d4 {[%emt 0:00:00]} cxd4 {[%emt 0:00:00]} 4. Nxd4 {[%emt 0:00:00]}
Nf6 {[%emt 0:00:00]} 5. Nc3 {[%emt 0:00:00]} a6 {[%emt 0:00:00]} 6. Bg5 {
[%emt 0:00:00]} Nbd7 {[%emt 0:00:00]} 7. Qe2 {[%emt 0:00:00]} h6 {[%emt 0:00:
00]} 8. Bh4 {[%emt 0:00:00]} Qc7 {[%emt 0:00:00]} 9. O-O-O {[%emt 0:00:00]} e6
{[%emt 0:00:00]} 10. f4 {[%emt 0:00:00]} b5 {[%emt 0:00:00]} 11. a3 {[%emt 0:
00:00]} Be7 {[%emt 0:00:00]} 12. g4 {[%emt 0:00:00]} Bb7 {[%emt 0:00:00]} 13.
Kb1 {[%emt 0:00:00]} Rc8 {[%emt 0:00:00]} 14. Rg1 {[%emt 0:00:00]} g5 {[%emt 0:
00:00]} 15. fxg5 {[%emt 0:00:00]} hxg5 {[%emt 0:00:00]} 16. Bxg5 {[%emt 0:00:
00]} Qb6 {[%emt 0:00:00]} 17. Qe1 {[%emt 0:00:00]} Rxc3 {[%emt 0:00:00]} 18.
Bxf6 {[%emt 0:00:00]} Nxf6 {[%emt 0:00:00]} 19. Qxc3 {[%emt 0:00:00]} Nxe4 {
[%emt 0:00:00]} 20. Qe1 {[%emt 0:00:00]} Bf6 {[%emt 0:00:00]} 21. c3 {[%emt 0:
00:00]} Rxh2 {[%emt 0:00:00]} 22. g5 {[%emt 0:00:00]} Bxd4 {[%emt 0:00:00]} 23.
cxd4 {[%emt 0:00:00]} b4 {[%emt 0:00:00]} 24. Qxb4 {[%emt 0:00:00]} Nd2+ {
[%emt 0:00:00]} 25. Ka1 {[%emt 0:00:00]} Qxb4 {[%emt 0:00:00]} 26. axb4 {
[%emt 0:00:00]} Bf3 {[%emt 0:00:00]} 27. Re1 {[%emt 0:00:00]} Nb3+ {[%emt 0:00:
00]} 28. Kb1 {[%emt 0:00:00]} Be4+ {[%emt 0:00:00]} 29. Rxe4 {[%emt 0:00:00]}
Nd2+ {[%emt 0:00:00]} 30. Kc1 {[%emt 0:00:00]} Nxe4 {[%emt 0:00:00]} 31. d5 {
[%emt 0:00:00]} e5 {[%emt 0:00:00]} 32. Bxa6 {[%emt 0:00:00]} Rd2 {[%emt 0:00:
00]} 33. Bb7 {[%emt 0:00:00]} Rd4 {[%emt 0:00:00]} 34. b5 {[%emt 0:00:00]} Rc4+
{[%emt 0:00:00]} 35. Kd1 {[%emt 0:00:00]} Kd8 {[%emt 0:00:00]} 36. Bc6 {
[%emt 0:00:00]} Kc7 {[%emt 0:00:00]} 37. Ke2 {[%emt 0:00:00]} Rb4 {[%emt 0:00:
00]} 38. Kd3 {[%emt 0:00:00]} Kb6 {[%emt 0:00:00]} 39. Be8 {[%emt 0:00:00]}
Nc5+ {[%emt 0:00:00]} 40. Kc3 {[%emt 0:00:00]} Rf4 {[%emt 0:00:00]} 41. b4 {
[%emt 0:00:00]} Rf3+ {[%emt 0:00:00]} 42. Kb2 {[%emt 0:00:20]} Nd3+ {[%emt 0:
00:00]} 43. Kc3 {[%emt 0:00:00]} Nf4+ {[%emt 0:00:00]} 44. Kb2 {[%emt 0:00:00]}
Rf2+ {[%emt 0:00:00]} 45. Kb3 {[%emt 0:00:00]} Ne2 {[%emt 0:00:00]} 46. Ra1 {
[%emt 0:00:00]} Nd4+ {[%emt 0:00:00]} 47. Kc4 {[%emt 0:00:00]} Nxb5 {[%emt 0:
00:00]} 48. Bxb5 {[%emt 0:00:08]} Rf4+ {[%emt 0:00:00]} 49. Kc3 {[%emt 0:00:00]
} Kxb5 {[%emt 0:00:00]} 50. Ra5+ {[%emt 0:00:00]} Kb6 {[%emt 0:00:00]} 51. Ra8
{[%emt 0:00:00]} Rg4 {[%emt 0:00:00]} 52. Rc8 {[%emt 0:00:00]} Rxg5 {[%emt 0:
00:00]} 53. Rc6+ {[%emt 0:00:00]} Kb5 {[%emt 0:00:00]} 54. Rxd6 {[%emt 0:00:00]
} Rg3+ {[%emt 0:00:00]} 55. Kd2 {[%emt 0:00:00]} f5 {[%emt 0:00:00]} 56. Re6 {
[%emt 0:00:00]} e4 {[%emt 0:00:00]} 57. Ke2 {[%emt 0:00:00]} Rd3 {[%emt 0:00:
00]} 58. Re5 {[%emt 0:00:00]} Kxb4 {[%emt 0:00:00]} 59. Rxf5 {[%emt 0:00:00]}
Kc5 {[%emt 0:00:00]} 60. d6+ {[%emt 0:00:00]} Kxd6 {[%emt 0:00:00]} 1/2-1/2

[Event "I Liga Centralne Srbije"]
[Site "Bajina Bašta, Serbia"]
[Date "2020.10.11"]
[Round "2.4"]
[White "Ivanovic, Marko"]
[Black "Radovic, Janko"]
[Result "1-0"]
[ECO "A47"]
[WhiteElo "2277"]
[BlackElo "2433"]
[Annotator "Knez"]
[PlyCount "43"]
[EventDate "2020.??.??"]
[TimeControl "90"]

1. Nf3 {[%emt 0:13:20]} Nf6 {[%emt 0:01:53]} 2. d4 {[%emt 0:00:17]} e6 {
[%emt 0:00:06]} 3. Bg5 {[%emt 0:00:08]} c5 {[%emt 0:02:46]} 4. e3 {[%emt 0:00:
14]} Be7 {[%emt 0:00:24]} 5. Nbd2 {[%emt 0:00:23]} b6 {[%emt 0:02:24]} 6. Bd3 {
[%emt 0:00:11]} Bb7 {[%emt 0:00:56]} 7. c3 {[%emt 0:00:17]} cxd4 {[%emt 0:05:
41]} 8. exd4 {[%emt 0:00:15]} d6 {[%emt 0:01:49]} 9. Bxf6 {[%emt 0:00:24]} Bxf6
{[%emt 0:06:30]} 10. Qe2 {[%emt 0:00:20]} Nd7 {[%emt 0:01:41]} 11. h4 {[%emt 0:
00:15]} Be7 {[%emt 0:08:27]} 12. O-O-O {[%emt 0:01:41]} a6 {[%emt 0:07:02]} 13.
Kb1 {[%emt 0:02:22]} b5 {[%emt 0:05:21]} 14. g4 {[%emt 0:07:53]} Nf6 {[%emt 0:
05:31]} 15. g5 {[%emt 0:02:40]} Nd5 {[%emt 0:01:34]} 16. Ne4 {[%emt 0:00:49]}
Nf4 {[%emt 0:06:10]} 17. Qe3 {[%emt 0:03:54]} Nxd3 {[%emt 0:00:28]} 18. Rxd3 {
[%emt 0:01:02]} Bd5 {[%emt 0:06:38]} 19. h5 {[%emt 0:03:03]} a5 {[%emt 0:13:31]
} 20. Rg1 {[%emt 0:06:20]} h6 {[%emt 0:16:39]} 21. gxh6 {[%emt 0:02:44]} gxh6 {
[%emt 0:00:04]} 22. Qf4 {[%emt 0:04:27]} 1-0

[Event "I Liga Centralne Srbije"]
[Site "Bajina Bašta, Serbia"]
[Date "2020.10.11"]
[Round "2.4"]
[White "Radovic, Luka"]
[Black "Pavlovic, Goran"]
[Result "1/2-1/2"]
[ECO "A26"]
[WhiteElo "2334"]
[BlackElo "2345"]
[Annotator "Knez"]
[PlyCount "43"]
[EventDate "2020.??.??"]
[TimeControl "90"]

1. Nf3 {[%emt 0:51:45]} Nf6 {[%emt 0:02:34]} 2. c4 {[%emt 0:00:35]} g6 {
[%emt 0:00:19]} 3. g3 {[%emt 0:00:36]} Bg7 {[%emt 0:00:21]} 4. Bg2 {[%emt 0:00:
15]} O-O {[%emt 0:00:22]} 5. O-O {[%emt 0:00:10]} d6 {[%emt 0:01:05]} 6. Nc3 {
[%emt 0:01:55]} e5 {[%emt 0:01:14]} 7. d3 {[%emt 0:00:42]} Nc6 {[%emt 0:00:35]}
8. Rb1 {[%emt 0:01:10]} a5 {[%emt 0:00:54]} 9. a3 {[%emt 0:00:15]} Bf5 {
[%emt 0:00:43]} 10. Ne1 {[%emt 0:06:31]} Qd7 {[%emt 0:00:31]} 11. Nc2 {[%emt 0:
01:36]} Bh3 {[%emt 0:00:51]} 12. b4 {[%emt 0:00:56]} Bxg2 {[%emt 0:00:29]} 13.
Kxg2 {[%emt 0:00:15]} axb4 {[%emt 0:02:53]} 14. axb4 {[%emt 0:00:14]} Ne7 {
[%emt 0:05:09]} 15. e4 {[%emt 0:10:06]} c6 {[%emt 0:06:10]} 16. b5 {[%emt 0:08:
06]} d5 {[%emt 0:04:07]} 17. Ba3 {[%emt 0:04:16]} d4 {[%emt 0:01:52]} 18. Ne2 {
[%emt 0:01:15]} Ne8 {[%emt 0:01:07]} 19. Qd2 {[%emt 0:14:12]} Nc7 {[%emt 0:03:
51]} 20. bxc6 {[%emt 0:02:40]} bxc6 {[%emt 0:00:29]} 21. Rb7 {[%emt 0:10:27]}
Rfe8 {[%emt 0:03:49]} 22. Kg1 {[%emt 0:04:15]} 1/2-1/2

[Event "I Liga Centralne Srbije"]
[Site "Bajina Bašta, Serbia"]
[Date "2020.10.11"]
[Round "2.5"]
[White "Ristic, Nebojsa B"]
[Black "Kostic, Vladimir G"]
[Result "0-1"]
[ECO "B08"]
[WhiteElo "2312"]
[BlackElo "2289"]
[Annotator "Knez"]
[PlyCount "60"]
[EventDate "2020.??.??"]
[TimeControl "90"]

1. d4 {[%emt 0:11:30]} Nf6 {[%emt 0:00:33]} 2. Bf4 {[%emt 0:00:08]} g6 {
[%emt 0:02:55]} 3. Nc3 {[%emt 0:00:14]} Bg7 {[%emt 0:00:27]} 4. e4 {[%emt 0:00:
15]} O-O {[%emt 0:00:47]} 5. Qd2 {[%emt 0:00:35]} d6 {[%emt 0:00:18]} 6. O-O-O
{[%emt 0:00:19]} c6 {[%emt 0:00:30]} 7. Nf3 {[%emt 0:01:16]} b5 {[%emt 0:00:11]
} 8. Bd3 {[%emt 0:01:19]} Bg4 {[%emt 0:03:37]} 9. h3 {[%emt 0:06:22]} Bxf3 {
[%emt 0:00:23]} 10. gxf3 {[%emt 0:00:01]} Qa5 {[%emt 0:01:31]} 11. Kb1 {
[%emt 0:00:53]} b4 {[%emt 0:02:00]} 12. Ne2 {[%emt 0:00:14]} Nbd7 {[%emt 0:00:
21]} 13. Bh6 {[%emt 0:04:36]} c5 {[%emt 0:04:17]} 14. h4 {[%emt 0:02:46]} Rfc8
{[%emt 0:04:01]} 15. Bxg7 {[%emt 0:03:02]} Kxg7 {[%emt 0:00:19]} 16. dxc5 {
[%emt 0:03:43]} dxc5 {[%emt 0:05:31]} 17. b3 {[%emt 0:04:47]} c4 {[%emt 0:07:
36]} 18. Bxc4 {[%emt 0:00:57]} Ne5 {[%emt 0:01:13]} 19. Bd5 {[%emt 0:02:18]}
Nxf3 {[%emt 0:09:39]} 20. Qe3 {[%emt 0:21:13]} Rxc2 {[%emt 0:00:59]} 21. Kxc2 {
[%emt 0:01:34]} Qxa2+ {[%emt 0:00:10]} 22. Kd3 {[%emt 0:02:23]} Ne5+ {[%emt 0:
07:43]} 23. Kd4 {[%emt 0:00:03]} Nfg4 {[%emt 0:12:59]} 24. Qc1 {[%emt 0:21:41]}
Qxe2 {[%emt 0:03:20]} 25. Bxa8 {[%emt 0:01:16]} Qxf2+ {[%emt 0:00:55]} 26. Kd5
{[%emt 0:00:17]} Qb6 {[%emt 0:01:16]} 27. Bc6 {[%emt 0:05:47]} Nxc6 {[%emt 0:
01:31]} 28. e5 {[%emt 0:02:26]} Ncxe5 {[%emt 0:07:48]} 29. Rhe1 {[%emt 0:00:29]
} e6+ {[%emt 0:02:59]} 30. Ke4 {[%emt 0:00:23]} f5+ {[%emt 0:00:44]} 0-1

[Event "I Liga Centralne Srbije"]
[Site "Bajina Bašta, Serbia"]
[Date "2020.10.11"]
[Round "2.5"]
[White "Sredojevic, Ivan"]
[Black "Spasic, Petar"]
[Result "0-1"]
[ECO "C41"]
[WhiteElo "2258"]
[BlackElo "2251"]
[Annotator "Knez"]
[PlyCount "82"]
[EventDate "2020.??.??"]
[TimeControl "90"]
[WhiteClock "0:02:11"]
[BlackClock "0:19:44"]

1. e4 {[%emt 0:00:00]} c5 {[%emt 0:00:00]} 2. c3 {[%emt 0:00:00]} e5 {[%emt 0:
00:00]} 3. Nf3 {[%emt 0:00:00]} Nc6 {[%emt 0:00:00]} 4. Bc4 {[%emt 0:00:00]}
Be7 {[%emt 0:00:00]} 5. O-O {[%emt 0:00:00]} Nf6 {[%emt 0:00:00]} 6. Re1 {
[%emt 0:00:00]} O-O {[%emt 0:00:00]} 7. d4 {[%emt 0:00:00]} d6 {[%emt 0:00:00]}
8. dxe5 {[%emt 0:00:00]} dxe5 {[%emt 0:00:00]} 9. Nbd2 {[%emt 0:00:00]} Qc7 {
[%emt 0:00:00]} 10. a4 {[%emt 0:00:00]} b6 {[%emt 0:00:00]} 11. Qe2 {[%emt 0:
00:00]} Bb7 {[%emt 0:00:00]} 12. Ba6 {[%emt 0:00:00]} Bxa6 {[%emt 0:00:00]} 13.
Qxa6 {[%emt 0:00:00]} Na5 {[%emt 0:00:00]} 14. Nc4 {[%emt 0:00:00]} Nb3 {
[%emt 0:00:00]} 15. Rb1 {[%emt 0:00:00]} Nd7 {[%emt 0:00:00]} 16. Ne3 {[%emt 0:
00:00]} Qc6 {[%emt 0:00:00]} 17. Nd5 {[%emt 0:00:00]} Bd6 {[%emt 0:00:00]} 18.
Be3 {[%emt 0:00:00]} c4 {[%emt 0:00:00]} 19. Rbd1 {[%emt 0:00:00]} Na5 {
[%emt 0:00:00]} 20. Qb5 {[%emt 0:00:00]} Rfd8 {[%emt 0:00:00]} 21. Nb4 {
[%emt 0:00:00]} Bxb4 {[%emt 0:00:00]} 22. cxb4 {[%emt 0:00:00]} Qxb5 {[%emt 0:
00:00]} 23. axb5 {[%emt 0:00:00]} Nb3 {[%emt 0:00:00]} 24. Rd5 {[%emt 0:00:00]}
Nf6 {[%emt 0:00:00]} 25. Rxd8+ {[%emt 0:00:00]} Rxd8 {[%emt 0:00:00]} 26. Nxe5
{[%emt 0:00:00]} Nxe4 {[%emt 0:00:00]} 27. Nxc4 {[%emt 0:00:00]} Rd5 {[%emt 0:
00:00]} 28. h4 {[%emt 0:00:00]} f5 {[%emt 0:00:00]} 29. f3 {[%emt 0:00:00]} Nf6
{[%emt 0:00:00]} 30. Bg5 {[%emt 0:00:00]} Rxb5 {[%emt 0:00:00]} 31. Bxf6 {
[%emt 0:00:00]} gxf6 {[%emt 0:00:00]} 32. Re8+ {[%emt 0:00:00]} Kg7 {[%emt 0:
00:00]} 33. Nd6 {[%emt 0:00:00]} Rxb4 {[%emt 0:00:32]} 34. Nxf5+ {[%emt 0:00:
00]} Kf7 {[%emt 0:00:00]} 35. Re7+ {[%emt 0:00:00]} Kf8 {[%emt 0:00:00]} 36.
Rxh7 {[%emt 0:00:00]} Nc5 {[%emt 0:00:07]} 37. h5 {[%emt 0:00:00]} Kg8 {
[%emt 0:00:10]} 38. Rg7+ {[%emt 0:00:00]} Kh8 {[%emt 0:00:00]} 39. h6 {[%emt 0:
00:00]} Ne6 {[%emt 0:00:00]} 40. Ne7 {[%emt 0:00:00]} Nxg7 {[%emt 0:00:00]} 41.
hxg7+ {[%emt 0:00:00]} Kxg7 {[%emt 0:00:00]} 0-1